[Event "Early-Titled-Tuesday-Blitz-March-26-2024"]
[Site "Chess.com"]
[Date "2024.03.26"]
[Round "2"]
[White "Kunalm64"]
[Black "Zohid6"]
[Result "1/2-1/2"]
[WhiteElo "2638"]
[BlackElo "2923"]
[TimeControl "180+1"]
[EndTime "8:17:30 PDT"]
[Termination "Game drawn by repetition"]

1. e4 {[%clk 0:02:59.7]} 1... e5 {[%clk 0:03:00.1]} 2. Nf3 {[%clk 0:02:59.3]}
2... Nf6 {[%clk 0:03:00.5]} 3. Nxe5 {[%clk 0:02:59.1]} 3... d6 {[%clk
0:03:00.8]} 4. Nf3 {[%clk 0:02:59.3]} 4... Nxe4 {[%clk 0:03:00.9]} 5. d4 {[%clk
0:02:59.8]} 5... d5 {[%clk 0:03:01]} 6. Bd3 {[%clk 0:03:00.3]} 6... Bd6 {[%clk
0:03:01.2]} 7. O-O {[%clk 0:02:59.7]} 7... O-O {[%clk 0:03:01.6]} 8. Re1 {[%clk
0:02:58.8]} 8... Bf5 {[%clk 0:02:51.3]} 9. c4 {[%clk 0:02:53.9]} 9... c6 {[%clk
0:02:48.4]} 10. Nc3 {[%clk 0:02:53.7]} 10... Nxc3 {[%clk 0:02:47.5]} 11. bxc3
{[%clk 0:02:53.7]} 11... Bxd3 {[%clk 0:02:48.1]} 12. Qxd3 {[%clk 0:02:54]} 12...
dxc4 {[%clk 0:02:48.7]} 13. Qxc4 {[%clk 0:02:54.3]} 13... Nd7 {[%clk 0:02:48]}
14. Rb1 {[%clk 0:02:36.5]} 14... Qc7 {[%clk 0:02:46.2]} 15. Rb2 {[%clk
0:02:22.6]} 15... Nf6 {[%clk 0:02:33.8]} 16. Rbe2 {[%clk 0:02:22.4]} 16... Nd5
{[%clk 0:02:31.4]} 17. g3 {[%clk 0:02:14.3]} 17... Qd7 {[%clk 0:02:27.9]} 18.
Qd3 {[%clk 0:02:08.1]} 18... Rfe8 {[%clk 0:02:24.7]} 19. Ng5 {[%clk 0:02:01]}
19... Nf6 {[%clk 0:02:23.6]} 20. Ne4 {[%clk 0:01:56.6]} 20... Nxe4 {[%clk
0:02:22.2]} 21. Rxe4 {[%clk 0:01:56.7]} 21... Rxe4 {[%clk 0:02:22.8]} 22. Qxe4
{[%clk 0:01:56.9]} 22... h6 {[%clk 0:02:21.4]} 23. Bf4 {[%clk 0:01:53]} 23...
Bxf4 {[%clk 0:02:19.7]} 24. Qxf4 {[%clk 0:01:53.5]} 24... Re8 {[%clk 0:02:16.2]}
25. Rxe8+ {[%clk 0:01:49.7]} 25... Qxe8 {[%clk 0:02:17.1]} 26. Qe5 {[%clk
0:01:49.8]} 26... Qd8 {[%clk 0:01:53.7]} 27. h4 {[%clk 0:01:46.1]} 27... b5
{[%clk 0:01:47.9]} 28. Qc5 {[%clk 0:01:43.7]} 28... Qd7 {[%clk 0:01:47.7]} 29.
c4 {[%clk 0:01:33.1]} 29... bxc4 {[%clk 0:01:47.4]} 30. Qxc4 {[%clk 0:01:33.8]}
30... Qd5 {[%clk 0:01:47.2]} 31. Qxd5 {[%clk 0:01:11.4]} 31... cxd5 {[%clk
0:01:48.1]} 32. Kf1 {[%clk 0:01:11.8]} 32... Kf8 {[%clk 0:01:48.4]} 33. Ke2
{[%clk 0:01:12.1]} 33... h5 {[%clk 0:01:46.2]} 34. Ke3 {[%clk 0:01:11.4]} 34...
f6 {[%clk 0:01:38.4]} 35. Kf4 {[%clk 0:01:11.3]} 35... Kf7 {[%clk 0:01:38.5]}
36. f3 {[%clk 0:01:10.9]} 36... Ke6 {[%clk 0:01:32]} 37. g4 {[%clk 0:01:10.3]}
37... g6 {[%clk 0:01:31.8]} 38. a3 {[%clk 0:01:00.8]} 38... a6 {[%clk
0:01:25.7]} 39. a4 {[%clk 0:00:54]} 39... a5 {[%clk 0:01:20.7]} 40. Kg3 {[%clk
0:00:44.2]} 40... Kf7 {[%clk 0:01:12.5]} 41. Kf4 {[%clk 0:00:40]} 41... Ke6
{[%clk 0:01:06.9]} 42. Kg3 {[%clk 0:00:38.6]} 42... Kf7 {[%clk 0:00:58.7]} 43.
f4 {[%clk 0:00:35.5]} 43... f5 {[%clk 0:00:25.3]} 44. g5 {[%clk 0:00:33.7]}
44... Ke6 {[%clk 0:00:25.3]} 45. Kf3 {[%clk 0:00:33.9]} 45... Kd6 {[%clk
0:00:26.2]} 46. Ke3 {[%clk 0:00:34.3]} 46... Kc6 {[%clk 0:00:27.1]} 47. Kd3
{[%clk 0:00:34.8]} 47... Kb6 {[%clk 0:00:28]} 48. Kc3 {[%clk 0:00:35.3]} 48...
Kc6 {[%clk 0:00:28.9]} 49. Kd3 {[%clk 0:00:35.7]} 49... Kb6 {[%clk 0:00:29.8]}
50. Kc3 {[%clk 0:00:36.3]} 50... Kc6 {[%clk 0:00:30.7]} 51. Kd3 {[%clk 0:00:37]}
1/2-1/2

[Event "Early-Titled-Tuesday-Blitz-March-26-2024"]
[Site "Chess.com"]
[Date "2024.03.26"]
[Round "2"]
[White "Juicy_Fork"]
[Black "RebecaJimnz"]
[Result "1-0"]
[WhiteElo "2507"]
[BlackElo "2241"]
[TimeControl "180+1"]
[EndTime "8:17:32 PDT"]
[Termination "Juicy_Fork won by checkmate"]

1. e4 {[%clk 0:03:00.9]} 1... c5 {[%clk 0:02:59.5]} 2. Nf3 {[%clk 0:03:00.5]}
2... Nc6 {[%clk 0:03:00.2]} 3. Bb5 {[%clk 0:02:58.9]} 3... g6 {[%clk 0:02:59.8]}
4. O-O {[%clk 0:02:55.4]} 4... Bg7 {[%clk 0:03:00.4]} 5. c3 {[%clk 0:02:55.4]}
5... Nf6 {[%clk 0:02:59.8]} 6. Qa4 {[%clk 0:02:53.6]} 6... O-O {[%clk
0:02:57.3]} 7. d4 {[%clk 0:02:52.3]} 7... cxd4 {[%clk 0:02:52.9]} 8. cxd4 {[%clk
0:02:53.2]} 8... a6 {[%clk 0:02:52.7]} 9. Re1 {[%clk 0:02:51.1]} 9... Ne8 {[%clk
0:02:32.2]} 10. h3 {[%clk 0:02:33.5]} 10... Nc7 {[%clk 0:02:29.2]} 11. Bf1
{[%clk 0:02:31.9]} 11... b5 {[%clk 0:02:28.5]} 12. Qd1 {[%clk 0:02:31]} 12... d5
{[%clk 0:02:25.3]} 13. e5 {[%clk 0:02:31.3]} 13... h5 {[%clk 0:02:09.5]} 14. Nc3
{[%clk 0:02:20.1]} 14... Bf5 {[%clk 0:02:08.9]} 15. Nh4 {[%clk 0:02:09.2]} 15...
Be6 {[%clk 0:02:07.5]} 16. f4 {[%clk 0:02:09.3]} 16... b4 {[%clk 0:02:02]} 17.
Na4 {[%clk 0:02:07.7]} 17... Nb5 {[%clk 0:02:02.3]} 18. Be3 {[%clk 0:02:01]}
18... Bc8 {[%clk 0:01:55.6]} 19. Rc1 {[%clk 0:01:56]} 19... e6 {[%clk
0:01:42.6]} 20. Nxg6 {[%clk 0:01:47.4]} 20... fxg6 {[%clk 0:01:33.5]} 21. Rxc6
{[%clk 0:01:44.9]} 21... Bd7 {[%clk 0:01:34.1]} 22. Rc1 {[%clk 0:01:42.3]} 22...
Qa5 {[%clk 0:01:22.2]} 23. Nc5 {[%clk 0:01:42]} 23... Bc8 {[%clk 0:01:10.6]} 24.
Qa4 {[%clk 0:01:15]} 24... Qd8 {[%clk 0:00:59.6]} 25. Qxb4 {[%clk 0:01:09.8]}
25... Qh4 {[%clk 0:00:50.7]} 26. a4 {[%clk 0:00:43.6]} 26... Nc7 {[%clk
0:00:45.8]} 27. Nd7 {[%clk 0:00:20.3]} 27... Bxd7 {[%clk 0:00:20.5]} 28. Rxc7
{[%clk 0:00:19.9]} 28... Rab8 {[%clk 0:00:21.1]} 29. Qa5 {[%clk 0:00:14.5]}
29... Bc8 {[%clk 0:00:21.1]} 30. Re2 {[%clk 0:00:10.5]} 30... Bh6 {[%clk
0:00:20.1]} 31. Rf2 {[%clk 0:00:07.4]} 31... Bxf4 {[%clk 0:00:18.8]} 32. Bxf4
{[%clk 0:00:06.7]} 32... Rxf4 {[%clk 0:00:19.7]} 33. Rxf4 {[%clk 0:00:03.7]}
33... Qxf4 {[%clk 0:00:20.6]} 34. Qc5 {[%clk 0:00:03.6]} 34... Rxb2 {[%clk
0:00:19.1]} 35. Rxc8+ {[%clk 0:00:03.2]} 35... Kh7 {[%clk 0:00:18.7]} 36. Qe7+
{[%clk 0:00:03.1]} 36... Kh6 {[%clk 0:00:18.5]} 37. Rh8# {[%clk 0:00:03.6]} 1-0

[Event "Early-Titled-Tuesday-Blitz-March-26-2024"]
[Site "Chess.com"]
[Date "2024.03.26"]
[Round "2"]
[White "Josetricks"]
[Black "MITerryble"]
[Result "1-0"]
[WhiteElo "2699"]
[BlackElo "3007"]
[TimeControl "180+1"]
[EndTime "8:17:33 PDT"]
[Termination "Josetricks won by resignation"]

1. e4 {[%clk 0:03:00.9]} 1... e6 {[%clk 0:02:56.3]} 2. Nf3 {[%clk 0:03:00.4]}
2... d5 {[%clk 0:02:56.7]} 3. Nc3 {[%clk 0:03:01.3]} 3... Nf6 {[%clk 0:02:56.5]}
4. e5 {[%clk 0:03:01.3]} 4... Nfd7 {[%clk 0:02:56.5]} 5. d4 {[%clk 0:03:02.2]}
5... a6 {[%clk 0:02:56.6]} 6. Bd3 {[%clk 0:02:59.9]} 6... c5 {[%clk 0:02:56.6]}
7. dxc5 {[%clk 0:03:00.4]} 7... Nc6 {[%clk 0:02:56.3]} 8. Bf4 {[%clk 0:03:00.2]}
8... Nxc5 {[%clk 0:02:49.5]} 9. h4 {[%clk 0:02:54.7]} 9... Be7 {[%clk
0:02:46.3]} 10. h5 {[%clk 0:02:54.5]} 10... h6 {[%clk 0:02:46.5]} 11. Rh3 {[%clk
0:02:54.4]} 11... b5 {[%clk 0:02:42.2]} 12. Rg3 {[%clk 0:02:54.3]} 12... Bf8
{[%clk 0:02:41.9]} 13. Kf1 {[%clk 0:02:52.3]} 13... Bb7 {[%clk 0:02:41.7]} 14.
Kg1 {[%clk 0:02:51.4]} 14... b4 {[%clk 0:02:15.6]} 15. Ne2 {[%clk 0:02:44.7]}
15... Ne4 {[%clk 0:02:14.1]} 16. Bxe4 {[%clk 0:02:09.5]} 16... dxe4 {[%clk
0:02:15]} 17. Nd2 {[%clk 0:02:09.2]} 17... Ne7 {[%clk 0:02:12.6]} 18. c3 {[%clk
0:02:03.9]} 18... Nf5 {[%clk 0:02:10]} 19. Rh3 {[%clk 0:02:00.1]} 19... Be7
{[%clk 0:02:02.1]} 20. Qa4+ {[%clk 0:01:55.6]} 20... Kf8 {[%clk 0:01:36.2]} 21.
Nf1 {[%clk 0:01:52.2]} 21... a5 {[%clk 0:01:31.9]} 22. Ne3 {[%clk 0:01:48.9]}
22... Nxe3 {[%clk 0:01:30.1]} 23. Bxe3 {[%clk 0:01:49.8]} 23... Qe8 {[%clk
0:01:27.3]} 24. Qxe8+ {[%clk 0:01:46.9]} 24... Kxe8 {[%clk 0:01:26.1]} 25. Rc1
{[%clk 0:01:39.9]} 25... Rc8 {[%clk 0:01:12.5]} 26. Bb6 {[%clk 0:01:38.2]} 26...
Ba6 {[%clk 0:01:07.5]} 27. Nd4 {[%clk 0:01:31.4]} 27... Bg5 {[%clk 0:01:07.7]}
28. Rd1 {[%clk 0:01:29.2]} 28... Bd3 {[%clk 0:00:48.3]} 29. Bxa5 {[%clk
0:01:24.1]} 29... bxc3 {[%clk 0:00:48.7]} 30. Bxc3 {[%clk 0:01:22.2]} 30... Rb8
{[%clk 0:00:33.2]} 31. Rhxd3 {[%clk 0:01:18.7]} 31... exd3 {[%clk 0:00:33.3]}
32. Rxd3 {[%clk 0:01:19.6]} 32... Be7 {[%clk 0:00:24]} 33. a4 {[%clk 0:01:17.8]}
33... Rc8 {[%clk 0:00:20.9]} 34. a5 {[%clk 0:01:16.8]} 34... Bc5 {[%clk
0:00:16.9]} 35. Nb5 {[%clk 0:01:12.2]} 35... Rb8 {[%clk 0:00:17.4]} 36. Nc7+
{[%clk 0:01:06.1]} 36... Ke7 {[%clk 0:00:17.4]} 37. Na6 {[%clk 0:01:06.8]} 37...
Rhd8 {[%clk 0:00:13.3]} 38. Nxc5 {[%clk 0:01:05.5]} 38... Rxd3 {[%clk
0:00:12.9]} 39. Nxd3 {[%clk 0:01:06.4]} 39... Kd7 {[%clk 0:00:13.8]} 40. Kf1
{[%clk 0:01:05.7]} 40... Kc6 {[%clk 0:00:14.1]} 41. Ke2 {[%clk 0:01:06.4]} 41...
Kb5 {[%clk 0:00:14.7]} 42. Ke3 {[%clk 0:01:07]} 42... Rd8 {[%clk 0:00:14.6]} 43.
b3 {[%clk 0:00:59.7]} 43... Rc8 {[%clk 0:00:13.6]} 44. Bd2 {[%clk 0:00:57.8]}
44... Rc2 {[%clk 0:00:12.6]} 45. g4 {[%clk 0:00:54.3]} 45... Ra2 {[%clk
0:00:12.7]} 46. f4 {[%clk 0:00:53.6]} 46... Ra3 {[%clk 0:00:13.1]} 47. Nc1
{[%clk 0:00:51.4]} 47... Ra1 {[%clk 0:00:10.5]} 48. Kd3 {[%clk 0:00:48.7]} 48...
f6 {[%clk 0:00:07.3]} 49. Kc2 {[%clk 0:00:48.1]} 1-0

[Event "Early-Titled-Tuesday-Blitz-March-26-2024"]
[Site "Chess.com"]
[Date "2024.03.26"]
[Round "2"]
[White "Karttunen"]
[Black "ilya2700"]
[Result "1-0"]
[WhiteElo "2742"]
[BlackElo "2341"]
[TimeControl "180+1"]
[EndTime "8:17:34 PDT"]
[Termination "Karttunen won on time"]

1. e4 {[%clk 0:03:00.9]} 1... c5 {[%clk 0:03:00.3]} 2. Nf3 {[%clk 0:03:00.7]}
2... e6 {[%clk 0:03:00.8]} 3. d4 {[%clk 0:03:00.6]} 3... cxd4 {[%clk 0:03:01.7]}
4. Nxd4 {[%clk 0:03:01.4]} 4... Nf6 {[%clk 0:03:02.3]} 5. Nc3 {[%clk 0:03:01.5]}
5... Nc6 {[%clk 0:03:02.9]} 6. Bg5 {[%clk 0:03:00.1]} 6... Bb4 {[%clk
0:03:02.9]} 7. Nxc6 {[%clk 0:02:55]} 7... bxc6 {[%clk 0:03:02.9]} 8. Qd4 {[%clk
0:02:33.4]} 8... c5 {[%clk 0:02:36.1]} 9. Qe3 {[%clk 0:02:32.6]} 9... Qa5 {[%clk
0:02:16.7]} 10. f3 {[%clk 0:02:19.4]} 10... d5 {[%clk 0:01:49.2]} 11. Bxf6
{[%clk 0:02:17.6]} 11... d4 {[%clk 0:01:49.4]} 12. Bxd4 {[%clk 0:02:15.2]} 12...
cxd4 {[%clk 0:01:50.3]} 13. Qxd4 {[%clk 0:02:14.4]} 13... O-O {[%clk 0:01:50.7]}
14. a3 {[%clk 0:02:14.2]} 14... Rb8 {[%clk 0:01:35.9]} 15. O-O-O {[%clk
0:01:50.6]} 15... Bc5 {[%clk 0:00:57.6]} 16. Qd3 {[%clk 0:01:30.5]} 16... Bxa3
{[%clk 0:00:22.6]} 17. bxa3 {[%clk 0:01:30.3]} 17... Qxa3+ {[%clk 0:00:20.5]}
18. Kd2 {[%clk 0:01:30.5]} 18... Ba6 {[%clk 0:00:19.5]} 19. Qxa6 {[%clk
0:01:21.1]} 19... Rfd8+ {[%clk 0:00:19.6]} 20. Qd3 {[%clk 0:01:21.6]} 20...
Rxd3+ {[%clk 0:00:19.4]} 21. Bxd3 {[%clk 0:01:22.4]} 21... Rc8 {[%clk
0:00:12.9]} 22. Ne2 {[%clk 0:01:20.7]} 22... Qb4+ {[%clk 0:00:11]} 23. Ke3
{[%clk 0:01:13.4]} 23... Qb6+ {[%clk 0:00:11.1]} 24. Kd2 {[%clk 0:01:10.2]}
24... Qb4+ {[%clk 0:00:11.1]} 25. c3 {[%clk 0:01:10.1]} 25... Qb2+ {[%clk
0:00:10.8]} 26. Ke1 {[%clk 0:01:10.1]} 26... a5 {[%clk 0:00:05.2]} 27. Kf2
{[%clk 0:01:08]} 27... h6 {[%clk 0:00:02.8]} 28. Rb1 {[%clk 0:01:07.6]} 28...
Qd2 {[%clk 0:00:02.4]} 29. Rhd1 {[%clk 0:01:07.3]} 29... Qg5 {[%clk 0:00:02.4]}
30. Rb5 {[%clk 0:01:04.8]} 30... Qf6 {[%clk 0:00:02.1]} 31. Rxa5 {[%clk
0:01:03.6]} 31... Qe7 {[%clk 0:00:02.2]} 32. Rda1 {[%clk 0:00:59.9]} 32... Qc7
{[%clk 0:00:01.8]} 33. g3 {[%clk 0:00:55.4]} 33... g6 {[%clk 0:00:01.9]} 34. Ra8
{[%clk 0:00:52.1]} 34... Rxa8 {[%clk 0:00:01.9]} 35. Rxa8+ {[%clk 0:00:53]}
35... Kg7 {[%clk 0:00:02.7]} 36. Ra4 {[%clk 0:00:50]} 36... Qc5+ {[%clk
0:00:02.7]} 37. Kg2 {[%clk 0:00:37.8]} 37... Qe3 {[%clk 0:00:03]} 38. Ba6 {[%clk
0:00:37.6]} 38... Qd2 {[%clk 0:00:02.6]} 39. Rd4 {[%clk 0:00:36.5]} 39... Qa2
{[%clk 0:00:02.3]} 40. Bd3 {[%clk 0:00:36.2]} 40... Qd2 {[%clk 0:00:01.5]} 41.
e5 {[%clk 0:00:35.5]} 1-0

[Event "Early-Titled-Tuesday-Blitz-March-26-2024"]
[Site "Chess.com"]
[Date "2024.03.26"]
[Round "2"]
[White "ChempionBg"]
[Black "ragnaroek66"]
[Result "1-0"]
[WhiteElo "2371"]
[BlackElo "2531"]
[TimeControl "180+1"]
[EndTime "8:17:37 PDT"]
[Termination "ChempionBg won by checkmate"]

1. d4 {[%clk 0:02:54]} 1... Nf6 {[%clk 0:02:58.4]} 2. c4 {[%clk 0:02:53.9]} 2...
e6 {[%clk 0:02:58.7]} 3. Nf3 {[%clk 0:02:54.2]} 3... d5 {[%clk 0:02:58.9]} 4. g3
{[%clk 0:02:54.8]} 4... Be7 {[%clk 0:02:58.2]} 5. Bg2 {[%clk 0:02:53.8]} 5...
O-O {[%clk 0:02:58.8]} 6. O-O {[%clk 0:02:54.2]} 6... dxc4 {[%clk 0:02:59.5]} 7.
Qc2 {[%clk 0:02:54.1]} 7... b5 {[%clk 0:02:58.4]} 8. a4 {[%clk 0:02:49.9]} 8...
b4 {[%clk 0:02:54.2]} 9. Qxc4 {[%clk 0:02:48.6]} 9... Ba6 {[%clk 0:02:51.2]} 10.
Qc2 {[%clk 0:02:48.4]} 10... Nbd7 {[%clk 0:02:47.2]} 11. Bf4 {[%clk 0:02:47.1]}
11... c5 {[%clk 0:02:42.2]} 12. dxc5 {[%clk 0:02:46.3]} 12... Bxc5 {[%clk
0:02:21]} 13. Rd1 {[%clk 0:02:43.2]} 13... Qb6 {[%clk 0:02:14.9]} 14. e3 {[%clk
0:02:30.3]} 14... b3 {[%clk 0:02:08]} 15. Qd2 {[%clk 0:02:27.1]} 15... Rfd8
{[%clk 0:02:01.8]} 16. Nc3 {[%clk 0:02:23.8]} 16... Ne5 {[%clk 0:01:55]} 17. Nd4
{[%clk 0:02:16.1]} 17... Nc4 {[%clk 0:01:50]} 18. Qc1 {[%clk 0:02:09.4]} 18...
Rac8 {[%clk 0:01:44]} 19. Bg5 {[%clk 0:02:00]} 19... Bxd4 {[%clk 0:01:35]} 20.
exd4 {[%clk 0:01:58.8]} 20... Rxd4 {[%clk 0:01:35.1]} 21. Bxf6 {[%clk 0:01:57]}
21... Rxd1+ {[%clk 0:01:30.4]} 22. Qxd1 {[%clk 0:01:48]} 22... gxf6 {[%clk
0:01:30.1]} 23. Qg4+ {[%clk 0:01:38]} 23... Kh8 {[%clk 0:01:29.6]} 24. Qh4
{[%clk 0:01:38.2]} 24... Kg7 {[%clk 0:01:20.8]} 25. Ne4 {[%clk 0:01:16.3]} 25...
e5 {[%clk 0:01:18]} 26. Bh3 {[%clk 0:01:10.5]} 26... Rg8 {[%clk 0:01:00.5]} 27.
Bf5 {[%clk 0:01:08.8]} 27... h6 {[%clk 0:00:59.8]} 28. Rd1 {[%clk 0:00:59.4]}
28... Rd8 {[%clk 0:00:50.2]} 29. Qg4+ {[%clk 0:00:21.3]} 29... Kf8 {[%clk
0:00:47.7]} 30. Rxd8+ {[%clk 0:00:21.3]} 30... Qxd8 {[%clk 0:00:47.7]} 31. Nc5
{[%clk 0:00:21.2]} 31... Nxb2 {[%clk 0:00:10.9]} 32. Nd7+ {[%clk 0:00:11]} 32...
Ke7 {[%clk 0:00:10.4]} 33. Qb4+ {[%clk 0:00:10.1]} 33... Ke8 {[%clk 0:00:10.5]}
34. Qf8# {[%clk 0:00:09.9]} 1-0

[Event "Early-Titled-Tuesday-Blitz-March-26-2024"]
[Site "Chess.com"]
[Date "2024.03.26"]
[Round "2"]
[White "cristiano78"]
[Black "KarstenHansch"]
[Result "0-1"]
[WhiteElo "2225"]
[BlackElo "2501"]
[TimeControl "180+1"]
[EndTime "8:17:37 PDT"]
[Termination "KarstenHansch won by checkmate"]

1. d4 {[%clk 0:02:59.1]} 1... Nf6 {[%clk 0:02:59.8]} 2. c4 {[%clk 0:02:58.3]}
2... g6 {[%clk 0:03:00.4]} 3. Nc3 {[%clk 0:02:57.5]} 3... Bg7 {[%clk 0:03:00.9]}
4. e4 {[%clk 0:02:56.7]} 4... d6 {[%clk 0:03:01.3]} 5. Nf3 {[%clk 0:02:55.8]}
5... O-O {[%clk 0:03:01]} 6. Be2 {[%clk 0:02:51.8]} 6... e5 {[%clk 0:03:01.4]}
7. O-O {[%clk 0:02:51.7]} 7... Nc6 {[%clk 0:03:01.7]} 8. d5 {[%clk 0:02:50.2]}
8... Ne7 {[%clk 0:03:02.2]} 9. Be3 {[%clk 0:02:49.3]} 9... Ng4 {[%clk
0:02:59.5]} 10. Bg5 {[%clk 0:02:48.5]} 10... f6 {[%clk 0:02:58.2]} 11. Bh4
{[%clk 0:02:48]} 11... g5 {[%clk 0:02:57.9]} 12. Bg3 {[%clk 0:02:47.4]} 12...
Nh6 {[%clk 0:02:53.5]} 13. Nd2 {[%clk 0:02:46.3]} 13... f5 {[%clk 0:02:51.8]}
14. f3 {[%clk 0:02:45.4]} 14... f4 {[%clk 0:02:51.5]} 15. Bf2 {[%clk 0:02:45.2]}
15... Rf6 {[%clk 0:02:04.1]} 16. b4 {[%clk 0:02:38.4]} 16... Rg6 {[%clk
0:02:04]} 17. h3 {[%clk 0:02:35.9]} 17... Nf7 {[%clk 0:02:03.2]} 18. c5 {[%clk
0:02:24.8]} 18... h5 {[%clk 0:02:02.9]} 19. Nc4 {[%clk 0:02:21]} 19... g4 {[%clk
0:02:01.9]} 20. hxg4 {[%clk 0:02:20.3]} 20... hxg4 {[%clk 0:02:02.1]} 21. fxg4
{[%clk 0:02:20.5]} 21... Nh6 {[%clk 0:01:59.8]} 22. Nb5 {[%clk 0:02:11.6]} 22...
Nxg4 {[%clk 0:01:56.3]} 23. cxd6 {[%clk 0:02:04.8]} 23... cxd6 {[%clk
0:01:56.2]} 24. Nbxd6 {[%clk 0:02:00.4]} 24... Nxf2 {[%clk 0:01:51.8]} 25. Rxf2
{[%clk 0:02:00.4]} 25... Rxd6 {[%clk 0:01:51.6]} 26. Nxd6 {[%clk 0:02:00.4]}
26... Qxd6 {[%clk 0:01:52.5]} 27. Qb3 {[%clk 0:01:57.6]} 27... Bd7 {[%clk
0:01:50.5]} 28. Rc1 {[%clk 0:01:55.6]} 28... Be8 {[%clk 0:01:14.6]} 29. Bf3
{[%clk 0:01:54.5]} 29... Kf8 {[%clk 0:01:10]} 30. Rfc2 {[%clk 0:01:54.2]} 30...
Ng8 {[%clk 0:00:58.5]} 31. Rc7 {[%clk 0:01:45.2]} 31... Rb8 {[%clk 0:00:57.7]}
32. a4 {[%clk 0:01:44.7]} 32... Bf6 {[%clk 0:00:55]} 33. a5 {[%clk 0:01:41.2]}
33... Bd8 {[%clk 0:00:55]} 34. R7c3 {[%clk 0:01:35.2]} 34... Nf6 {[%clk
0:00:53]} 35. Qc4 {[%clk 0:01:31.8]} 35... Bg6 {[%clk 0:00:52]} 36. Re1 {[%clk
0:01:24]} 36... Kg7 {[%clk 0:00:47.7]} 37. Qc5 {[%clk 0:01:23.8]} 37... Be7
{[%clk 0:00:47.3]} 38. Qxa7 {[%clk 0:01:21.9]} 38... Qxb4 {[%clk 0:00:46.6]} 39.
Qxb8 {[%clk 0:01:16.4]} 39... Qxc3 {[%clk 0:00:46.4]} 40. Rb1 {[%clk 0:01:03.4]}
40... Bxe4 {[%clk 0:00:31.2]} 41. Rxb7 {[%clk 0:01:01.8]} 41... Qc5+ {[%clk
0:00:31.2]} 42. Kh2 {[%clk 0:00:57.3]} 42... Bxf3 {[%clk 0:00:31.8]} 43. gxf3
{[%clk 0:00:57]} 43... Qf2+ {[%clk 0:00:31]} 44. Kh1 {[%clk 0:00:56.2]} 44...
Qxf3+ {[%clk 0:00:31.2]} 45. Kg1 {[%clk 0:00:55.9]} 45... Qe3+ {[%clk
0:00:29.3]} 46. Kh1 {[%clk 0:00:52.7]} 46... Qe1+ {[%clk 0:00:28.9]} 47. Kg2
{[%clk 0:00:51.4]} 47... Qe2+ {[%clk 0:00:29]} 48. Kg1 {[%clk 0:00:49.6]} 48...
Qe1+ {[%clk 0:00:28.2]} 49. Kg2 {[%clk 0:00:49.6]} 49... f3+ {[%clk 0:00:28.4]}
50. Kxf3 {[%clk 0:00:49.1]} 50... e4+ {[%clk 0:00:28.8]} 51. Kg2 {[%clk
0:00:45.3]} 51... Qe2+ {[%clk 0:00:28.8]} 52. Kh1 {[%clk 0:00:42.2]} 52... Qf3+
{[%clk 0:00:28.6]} 53. Kg1 {[%clk 0:00:40]} 53... Qd1+ {[%clk 0:00:28.5]} 54.
Kh2 {[%clk 0:00:38.7]} 54... Ng4+ {[%clk 0:00:27.7]} 55. Kg3 {[%clk 0:00:39]}
55... Qf3# {[%clk 0:00:27.1]} 0-1

[Event "Early-Titled-Tuesday-Blitz-March-26-2024"]
[Site "Chess.com"]
[Date "2024.03.26"]
[Round "2"]
[White "Switzerlamb"]
[Black "Josgar05"]
[Result "1/2-1/2"]
[WhiteElo "2550"]
[BlackElo "2387"]
[TimeControl "180+1"]
[EndTime "8:17:38 PDT"]
[Termination "Game drawn by repetition"]

1. b3 {[%clk 0:02:55.8]} 1... d5 {[%clk 0:02:56.7]} 2. Bb2 {[%clk 0:02:56.7]}
2... Nf6 {[%clk 0:02:56.6]} 3. e3 {[%clk 0:02:57.3]} 3... e6 {[%clk 0:02:56.9]}
4. Nf3 {[%clk 0:02:57.9]} 4... c5 {[%clk 0:02:57.3]} 5. c4 {[%clk 0:02:58.6]}
5... Nc6 {[%clk 0:02:55.2]} 6. cxd5 {[%clk 0:02:58.9]} 6... exd5 {[%clk
0:02:56.1]} 7. Be2 {[%clk 0:02:58.9]} 7... Be7 {[%clk 0:02:56.4]} 8. O-O {[%clk
0:02:59.3]} 8... O-O {[%clk 0:02:56.9]} 9. d4 {[%clk 0:02:59.9]} 9... b6 {[%clk
0:02:55.6]} 10. Nc3 {[%clk 0:02:57.4]} 10... Bb7 {[%clk 0:02:55.2]} 11. Rc1
{[%clk 0:02:57.3]} 11... Rc8 {[%clk 0:02:54.4]} 12. dxc5 {[%clk 0:02:57.3]}
12... bxc5 {[%clk 0:02:54.4]} 13. Na4 {[%clk 0:02:57.5]} 13... Ne4 {[%clk
0:02:46]} 14. Ba3 {[%clk 0:02:57.5]} 14... Nb4 {[%clk 0:02:35.6]} 15. Bxb4
{[%clk 0:02:46.3]} 15... cxb4 {[%clk 0:02:36.5]} 16. Nd4 {[%clk 0:02:42.7]}
16... Bd6 {[%clk 0:02:32.1]} 17. Bf3 {[%clk 0:02:39.2]} 17... Qf6 {[%clk
0:02:02.7]} 18. Qd3 {[%clk 0:02:31.4]} 18... Qh6 {[%clk 0:01:24.5]} 19. g3
{[%clk 0:02:27.2]} 19... Qf6 {[%clk 0:01:24.2]} 20. Bxe4 {[%clk 0:02:11.3]}
20... dxe4 {[%clk 0:01:22.7]} 21. Qb5 {[%clk 0:02:11.8]} 21... Ba8 {[%clk
0:01:12.9]} 22. Nf5 {[%clk 0:01:53.3]} 22... Be5 {[%clk 0:01:08.3]} 23. Rxc8
{[%clk 0:01:49.1]} 23... Rxc8 {[%clk 0:01:09.2]} 24. Qd7 {[%clk 0:01:49.1]}
24... Rf8 {[%clk 0:00:59]} 25. Rc1 {[%clk 0:01:43.5]} 25... g6 {[%clk
0:00:50.3]} 26. Nh6+ {[%clk 0:01:41.8]} 26... Kg7 {[%clk 0:00:48]} 27. Ng4
{[%clk 0:01:42.4]} 27... Qd6 {[%clk 0:00:31.1]} 28. Nxe5 {[%clk 0:01:38.7]}
28... Qxe5 {[%clk 0:00:30.3]} 29. Rc7 {[%clk 0:01:28]} 29... Bd5 {[%clk
0:00:29.6]} 30. Nc5 {[%clk 0:01:27.1]} 30... a5 {[%clk 0:00:23.3]} 31. Kg2
{[%clk 0:01:26.8]} 31... a4 {[%clk 0:00:20]} 32. Nxa4 {[%clk 0:01:23.5]} 32...
Be6 {[%clk 0:00:20]} 33. Qd4 {[%clk 0:01:22.1]} 33... Qxd4 {[%clk 0:00:18.4]}
34. exd4 {[%clk 0:01:23]} 34... Rd8 {[%clk 0:00:18.9]} 35. Nc5 {[%clk
0:01:23.4]} 35... Bg4 {[%clk 0:00:16.3]} 36. h3 {[%clk 0:01:18.5]} 36... Bf3+
{[%clk 0:00:16.2]} 37. Kf1 {[%clk 0:01:19.1]} 37... Kf6 {[%clk 0:00:15.6]} 38.
Rd7 {[%clk 0:01:15.4]} 38... Ra8 {[%clk 0:00:15.6]} 39. Rd6+ {[%clk 0:01:09.9]}
39... Ke7 {[%clk 0:00:15.9]} 40. Ra6 {[%clk 0:01:10.4]} 40... Rd8 {[%clk
0:00:16.5]} 41. Ra7+ {[%clk 0:01:07.3]} 41... Kf6 {[%clk 0:00:16.9]} 42. Nd7+
{[%clk 0:01:07]} 42... Ke6 {[%clk 0:00:17.3]} 43. Nc5+ {[%clk 0:00:58]} 43...
Kf6 {[%clk 0:00:17.8]} 44. Rd7 {[%clk 0:00:53.1]} 44... Ra8 {[%clk 0:00:18]} 45.
Rd6+ {[%clk 0:00:47.2]} 45... Ke7 {[%clk 0:00:18.4]} 46. Ra6 {[%clk 0:00:47.2]}
46... Rd8 {[%clk 0:00:19]} 47. Ra7+ {[%clk 0:00:37.5]} 47... Kf6 {[%clk
0:00:19.3]} 1/2-1/2